fUSD/lending_fUSD_20260202
["ID","MTS","AMOUNT","RATE_DAILY","PERIOD"]
[404263267,1770013849399,-150.00025325,0.00016965,2]
[404263268,1770013849411,-301.1433787,0.00016967,2]
[404263269,1770013849423,-1000.0,0.00016986,2]
[404263270,1770013849435,-2205.73614126,0.00017,3]
[404263271,1770013849447,-300.0,0.00017,2]
[404263272,1770013849459,-157726.06092768,0.00017,2]
[404263273,1770013849485,-989.28,0.00017013,2]
[404263274,1770013849506,-163.0,0.0001704,2]
[404263275,1770013849523,-839.0,0.0001704,2]
[404263276,1770013849535,-833.0,0.0001704,2]
[404263277,1770013849559,-614.3,0.00017063,2]
[404263278,1770013849570,-1500.0,0.000171,2]
[404263279,1770013849583,-773.23,0.00017104,2]
[404263280,1770013849597,-160.02702936,0.00017104,2]
[404263281,1770013849620,-1988.36339388,0.00017116,2]
[404263282,1770013849636,-1756.98671009,0.00017116,2]
[404263283,1770013849652,-2000.0,0.00017116,2]
[404263284,1770013849686,-315.28060531,0.00017116,2]
[404263285,1770013849704,-1143.18674336,0.00017116,2]
[404263286,1770013849725,-2000.0,0.00017116,2]
[404263287,1770013849746,-2000.0,0.00017116,2]
[404263288,1770013849760,-1008.230722,0.00017116,2]
[404263289,1770013849772,-2128.18837233,0.00017116,2]
[404263290,1770013849786,-1474.64879752,0.00017116,2]
[404263291,1770013849800,-1006.20015718,0.00017116,2]
[404263292,1770013849812,-2000.0,0.00017116,2]
[404263293,1770013849823,-2000.0,0.00017116,2]
[404263294,1770013849835,-1189.68040771,0.00017116,2]
[404263295,1770013849849,-2000.0,0.00017116,2]
[404263296,1770013849866,-1899.6725397,0.00017163,2]
[404263297,1770013849879,-1000.0,0.00017188,2]
[404263298,1770013849894,-162.264,0.00017189,2]
[404263299,1770013849908,-3481.0,0.00017189,2]
[404263300,1770013849920,-728.464,0.00017189,2]
[404263301,1770013849931,-12868.48659519,0.00017235,2]
[404263302,1770013849942,-1000.0,0.0001726,2]
[404263303,1770013849955,-419.25,0.00017294,2]
[404263304,1770013849989,-2835.0,0.0001736,2]
[404263305,1770013850002,-163.0,0.0001736,2]
[404263306,1770013850020,-320.0,0.0001736,2]
[404263307,1770013850035,-839.0,0.0001736,2]
[404263308,1770013850047,-262.7,0.00017377,2]
[404263309,1770013850059,-773.47,0.00017377,2]
[404263310,1770013850079,-2844.0,0.000174,2]
[404263311,1770013850092,-13442.50995431,0.000175,2]
[404263312,1770013850103,-187.78006525,0.00017513,2]
[404263313,1770013850117,-924.60877284,0.00017513,2]
[404263314,1770013850129,-1536.04360649,0.00017513,2]
[404263315,1770013850144,-225.18697532,0.00017513,2]
[404263316,1770013850187,-225.18697532,0.00017513,2]
[404263317,1770013850199,-1826.81437292,0.00017531,2]
[404263318,1770013850211,-2471.7429,0.00017531,2]
[404263319,1770013850225,-1000.0,0.00017534,2]
[404263320,1770013850237,-176.86,0.00017605,2]
[404263321,1770013850250,-3012.2001319,0.0001764,2]
[404263322,1770013850263,-947.23523297,0.00017664,2]
[404263323,1770013850275,-502.76473862,0.00017664,2]
[404263324,1770013850289,-1002.53462592,0.00017664,2]
[404263325,1770013850302,-1002.03881526,0.00017664,2]
[404263326,1770013850315,-1504.86417643,0.00017664,2]
[404263327,1770013850328,-1216.63993214,0.00017664,2]
[404263328,1770013850340,-841.0,0.0001768,2]
[404263329,1770013850352,-3392.25741814,0.000177,2]
[404263330,1770013850369,-1500.0,0.000177,2]
[404263331,1770013850396,-5888.0,0.00017705,2]
[404263332,1770013850411,-334.5472959,0.00017786,2]
[404263333,1770013850424,-161.033,0.00017788,2]
[404263334,1770013850435,-1278.693,0.00017788,2]
[404263335,1770013850448,-1205.0,0.00017788,2]
[404263336,1770013850460,-925.751,0.00017788,2]
[404263337,1770013850471,-160.02702936,0.00017788,2]
[404263338,1770013850512,-500.0,0.00017808,2]
[404263339,1770013850527,-1000.0,0.00017808,2]
[404263340,1770013850567,-2000.0,0.0001782,2]
[404263341,1770013850590,-2000.0,0.0001782,2]
[404263342,1770013850621,-25000.0,0.00017822,3]
[404263343,1770013850634,-25000.0,0.00017831,3]
[404263344,1770013850645,-469.44,0.00017836,2]
[404263345,1770013850658,-172.49,0.00017836,2]
[404263346,1770013850674,-360.54,0.00017836,2]
[404263347,1770013850690,-25000.0,0.0001784,3]
[404263348,1770013850701,-25000.0,0.00017848,3]
[404263349,1770013850714,-200.0,0.00017855,2]
[404263350,1770013850726,-200.0,0.00017856,2]
[404263351,1770013850741,-200.0,0.00017856,2]
[404263352,1770013850754,-25000.0,0.00017857,3]
[404263353,1770013850768,-500.0,0.00017863,2]
[404263354,1770013850781,-25000.0,0.00017866,3]
[404263355,1770013850793,-25000.0,0.00017875,3]
[404263356,1770013850806,-25000.0,0.00017884,3]
[404263357,1770013850821,-25000.0,0.00017892,3]
[404263358,1770013850835,-181.47243878,0.000179,2]
[404263359,1770013850848,-1777.28427788,0.000179,3]
[404263360,1770013850862,-270.03958249,0.000179,2]
[404263361,1770013850877,-12868.48659519,0.000179,2]
[404263362,1770013850893,-402.65815908,0.000179,2]
[404263363,1770013850909,-220.41723254,0.000179,3]
[404263364,1770013850921,-13877.0,0.000179,2]
[404263365,1770013850934,-25000.0,0.00017901,3]
[404263366,1770013850947,-25000.0,0.0001791,3]
[404263367,1770013850960,-500.0,0.00017918,2]
[404263368,1770013850977,-25000.0,0.00017919,3]
[404263369,1770013850999,-25000.0,0.00017928,3]
[404263370,1770013851017,-25000.0,0.00017936,3]
[404263371,1770013851033,-25000.0,0.00017945,3]
[404263372,1770013851046,-25000.0,0.00017954,3]
[404263373,1770013851062,-25000.0,0.00017963,3]
[404263374,1770013851086,-25000.0,0.00017972,3]
[404263375,1770013851103,-506.1208044,0.00017972,2]
[404263376,1770013851120,-25000.0,0.0001798,3]
[404263377,1770013851135,-5304.0,0.00017986,2]
[404263378,1770013851170,-25000.0,0.00017989,3]
[404263379,1770013851196,-367635.4829921,0.00017993,2]
[404263380,1770013851210,-25000.0,0.00017998,3]
[404263381,1770013851224,-248.17115062,0.00017999,2]
[404263382,1770013851238,-300.0,0.00017999,2]
[404263383,1770013851255,-300.0,0.00017999,2]
[404263384,1770013851270,-300.0,0.00017999,2]
[404263385,1770013851285,-300.0,0.00017999,2]
[404263386,1770013851302,-670.83228666,0.00017999,2]
[404263387,1770013851317,-300.0,0.00017999,2]
[404263388,1770013851333,-666.0,0.00017999,2]
[404263389,1770013851348,-3252698.43696985,0.00018,2]
[404263390,1770013852149,-288.37048386,0.00012516,2]
[404263391,1770013852162,-176.3773302,0.00016913,2]
[404263392,1770013852175,-349.58373161,0.00017045,2]
[404263393,1770013852188,-180.29,0.00017836,2]
[404263394,1770013852200,-641149.28412594,0.00018,2]
[404263395,1770013852213,-119537.38616418,0.00018,2]
[404263396,1770013852226,-3376052.15357452,0.00018,2]
[404263397,1770013852277,-324.97946918,0.00018,2]
[404263398,1770013852318,-306.1802,0.00018,2]
[404263399,1770013853240,-1077.09581276,0.00017189,2]
[404263400,1770013853252,-984.14314611,0.00017189,2]
[404263401,1770013853271,-573.95549409,0.00017189,2]
[404263402,1770013853288,-617.80554704,0.00017189,2]
[404263403,1770013853298,-349.58373161,0.000179,2]
[404263404,1770013853308,-812.11072135,0.00018,2]
[404263405,1770013853328,-11064.99999998,0.00018,2]
[404263406,1770013853514,218.501426,0.00011912,2]
[404263407,1770013861944,2355.41673593,0.00011912,2]
[404263408,1770013861967,10000.01,0.00011912,2]
[404263409,1770013861991,10000.01,0.00011912,2]
[404263410,1770013862014,10000.01,0.00011912,2]
[404263411,1770013862038,10000.01,0.00011912,2]
[404263412,1770013862061,10000.01,0.00011912,2]
[404263413,1770013862085,10000.01,0.00011912,2]
[404263414,1770013862108,10000.01,0.00011912,2]
[404263415,1770013862134,10000.01,0.00011912,2]
[404263416,1770013862157,10000.01,0.00011912,2]
[404263417,1770013866945,1095.71260215,0.00011911,3]
[404263419,1770013892322,1126.779,0.00011674,2]
[404263420,1770013892371,167.107,0.00011674,2]
[404263421,1770013912260,8706.124,0.00011812,2]
[404263422,1770013912292,7586.7448603,0.00011812,2]
[404263423,1770013916995,-500.0,0.00011912,2]
[404263424,1770013935699,190.29621091,0.0001601,30]
[404263425,1770013945041,2413.2651397,0.00011911,2]
[404263426,1770013945067,10000.01,0.00011911,2]
[404263427,1770013945091,10000.01,0.00011911,2]
[404263428,1770013945117,8738.86381406,0.00011911,2]
[404263430,1770013974915,176.37733019,0.00011812,2]
[404263431,1770013977339,1084.76885575,0.00011812,2]
[404263432,1770013977363,4371.5905437,0.00011812,2]
[404263433,1770013982564,150.0,0.00011911,2]
[404263434,1770013986211,329.960635,0.00011852,2]
[404263435,1770014006768,5148.4588213,0.00011812,2]
[404263436,1770014006794,8116.39521251,0.00011812,2]
[404263437,1770014011711,402.65815909,0.00011812,2]
[404263438,1770014015449,188.17009537,0.00011911,2]
[404263439,1770014015489,185.9644287,0.00011911,2]
[404263440,1770014015527,313.67107213,0.00011911,2]
[404263465,1770014052702,218.4898323,0.00011812,2]
[404263466,1770014053662,218.4898323,0.00011812,2]
[404263467,1770014081642,356.1713676,0.00011812,2]
[404263468,1770014081675,10000.01,0.00011812,2]
[404263469,1770014081704,10000.01,0.00011812,2]
[404263470,1770014081731,10000.01,0.00011812,2]
[404263471,1770014081765,2932.0491324,0.00011812,2]
[404263472,1770014095332,176.37733019,0.00011812,2]
[404263473,1770014098044,3637.57293296,0.00011812,2]
[404263474,1770014101699,300.0,0.00011911,2]
[404263475,1770014101757,1200.0,0.00011911,2]
[404263476,1770014120030,947.115068,0.00011852,2]
[404263477,1770014138786,268.43877272,0.00011812,2]
[404263478,1770014161642,300.0,0.00011911,2]
[404263479,1770014163430,150.0,0.00011911,2]
[404263480,1770014204470,88.45676373,0.00011812,2]
[404263481,1770014204497,123.61340072,0.00011812,2]
[404263482,1770014205357,9876.39659928,0.00011902,2]
[404263483,1770014205384,10000.01,0.00011902,2]
[404263484,1770014205683,5305.86696529,0.00011902,2]
[404263485,1770014207100,237.2858,0.00011812,2]
[404263486,1770014217750,2425.04862198,0.00011812,2]
[404263487,1770014222742,-500.0,0.00011912,2]
[404263488,1770014223651,-500.0,0.00011912,2]
[404263489,1770014224551,-500.0,0.00011912,2]
[404263490,1770014225183,-500.0,0.00011912,2]
[404263491,1770014225959,500.0,0.00011912,2]
[404263492,1770014264546,151.0,0.00011912,2]
[404263493,1770014264992,151.0,0.00011912,2]
[404263494,1770014265619,151.0,0.00011912,2]
[404263495,1770014266780,151.0,0.00011912,2]
[404263496,1770014267503,151.0,0.00011912,2]
[404263497,1770014268193,151.0,0.00011912,2]
[404263498,1770014268811,151.0,0.00011912,2]
[404263499,1770014268988,178.95918182,0.00011812,2]
[404263500,1770014270068,-151.0,0.00011912,2]
[404263501,1770014270107,-151.0,0.00011912,2]
[404263502,1770014270991,-151.0,0.00011912,2]
[404263503,1770014273137,-151.0,0.00011912,2]
[404263504,1770014273551,-327.37733019,0.00011912,2]
[404263505,1770014273621,-10000.01,0.00011912,2]
[404263506,1770014273787,-10000.01,0.00011912,2]
[404263507,1770014273906,-10000.01,0.00011912,2]
[404263508,1770014274016,-10000.01,0.00011912,2]
[404263509,1770014274151,-10000.01,0.00011912,2]
[404263510,1770014274268,-10000.01,0.00011912,2]
[404263511,1770014276223,-10000.01,0.00011912,2]
[404263512,1770014276328,-10000.01,0.00011912,2]
[404263513,1770014276439,-10000.01,0.00011912,2]
[404263514,1770014276577,-10000.01,0.00011912,2]
[404263516,1770014287221,10000.01,0.00011812,2]
[404263517,1770014287246,10000.01,0.00011812,2]
[404263518,1770014287271,10000.01,0.00011812,2]
[404263519,1770014287296,10000.01,0.00011812,2]
[404263520,1770014287321,10000.01,0.00011812,2]
[404263521,1770014287345,10000.01,0.00011812,2]
[404263522,1770014287373,548.80524206,0.00011812,2]
[404263523,1770014287400,462.73475794,0.00011812,2]
[404263524,1770014287426,150.1688723,0.00011812,2]
[404263525,1770014287459,159.44,0.00011812,2]
[404263526,1770014287485,150.1688723,0.00011812,2]
[404263527,1770014287510,266.0,0.00011812,2]
[404263528,1770014287536,500.0,0.00011812,2]
[404263529,1770014297666,-10000.01,0.00011812,2]
[404263530,1770014297788,-51.2839554,0.00011812,2]
[404263531,1770014318819,5059.112736,0.00011852,2]
[404263532,1770014320390,268.19474858,0.00011812,2]
[404263533,1770014338016,1616.69908132,0.00011812,2]
[404263534,1770014342448,150.0,0.00011911,2]
[404263535,1770014344447,2803.4355233,0.00011812,2]
[404263536,1770014344472,429.3369767,0.00011812,2]
[404263537,1770014346662,500.0,0.00011911,2]
[404263538,1770014347295,500.0,0.00011911,2]
[404263539,1770014350281,230.81235286,0.00011911,2]
[404263540,1770014350439,500.0,0.00011911,2]
[404263541,1770014354758,500.0,0.00011911,2]
[404263542,1770014374181,500.0,0.00011911,2]
[404263543,1770014374240,500.0,0.00011911,2]
[404263544,1770014374309,550.0,0.00011911,2]
[404263545,1770014378791,5129.9,0.00011233,2]
[404263547,1770014392971,659.96067044,0.00011812,2]
[404263548,1770014392997,10000.01,0.00011812,2]
[404263549,1770014393024,4113.76201868,0.00011812,2]
[404263550,1770014393176,526.05379866,0.00011911,2]
[404263551,1770014393220,526.05379866,0.00011911,2]
[404263552,1770014393268,526.05379866,0.00011911,2]
[404263553,1770014393315,526.05379866,0.00011911,2]
[404263554,1770014393360,526.05379866,0.00011911,2]
[404263555,1770014393406,526.05379866,0.00011911,2]
[404263556,1770014393450,526.05379866,0.00011911,2]
[404263557,1770014393493,526.05379866,0.00011911,2]
[404263558,1770014393538,526.05379866,0.00011911,2]
[404263559,1770014393579,526.05379866,0.00011911,2]
[404263560,1770014393625,526.05379866,0.00011911,2]
[404263561,1770014393678,99.65619606,0.00011911,2]
[404263562,1770014393713,426.3976026,0.00011911,2]
[404263563,1770014393792,526.05379866,0.00011911,2]
[404263564,1770014393838,526.05379866,0.00011911,2]
[404263565,1770014393883,526.05379866,0.00011911,2]
[404263566,1770014393926,526.05379866,0.00011911,2]
[404263567,1770014393972,526.05379866,0.00011911,2]
[404263568,1770014394017,526.05379866,0.00011911,2]
[404263569,1770014394065,526.05379866,0.00011911,2]
[404263570,1770014394111,526.05379866,0.00011911,2]
[404263571,1770014394153,526.05379866,0.00011911,2]
[404263572,1770014394195,526.05379866,0.00011911,2]
[404263573,1770014394238,526.05379866,0.00011911,2]
[404263574,1770014394298,526.05379866,0.00011911,2]
[404263575,1770014394342,526.05379866,0.00011911,2]
[404263576,1770014394387,526.05379866,0.00011911,2]
[404263577,1770014394430,526.05379866,0.00011911,2]
[404263578,1770014394473,526.05379866,0.00011911,2]
[404263579,1770014394517,526.05379866,0.00011911,2]
[404263580,1770014394560,526.05379866,0.00011911,2]
[404263581,1770014394897,104.64402152,0.00011911,2]
[404263582,1770014394926,421.40977714,0.00011911,2]
[404263583,1770014394971,526.05379866,0.00011911,2]
[404263584,1770014395017,526.05379866,0.00011911,2]
[404263585,1770014395062,526.05379866,0.00011911,2]
[404263586,1770014395107,526.05379866,0.00011911,2]
[404263587,1770014395150,526.05379866,0.00011911,2]
[404263588,1770014395192,526.05379866,0.00011911,2]
[404263589,1770014395245,526.05379866,0.00011911,2]
[404263590,1770014395291,526.05379866,0.00011911,2]
[404263591,1770014395348,526.05379866,0.00011911,2]
[404263592,1770014395390,526.05379866,0.00011911,2]
[404263593,1770014395432,526.05379866,0.00011911,2]
[404263594,1770014395474,526.05379866,0.00011911,2]
[404263595,1770014395517,526.05379866,0.00011911,2]
[404263596,1770014395560,526.05379866,0.00011911,2]
[404263597,1770014395602,526.05379866,0.00011911,2]
[404263598,1770014395652,526.05379866,0.00011911,2]
[404263599,1770014395700,526.05379866,0.00011911,2]
[404263600,1770014395761,526.05379866,0.00011911,2]
[404263601,1770014395804,109.63184698,0.00011911,2]
[404263602,1770014395832,416.42195168,0.00011911,2]
[404263603,1770014395878,526.05379866,0.00011911,2]
[404263604,1770014395923,526.05379866,0.00011911,2]
[404263605,1770014395966,526.05379866,0.00011911,2]
[404263606,1770014401611,300.0,0.00011911,2]
[404263607,1770014401652,1200.0,0.00011911,2]
[404263608,1770014401738,300.0,0.00011911,2]
[404263609,1770014402030,6205.42665234,0.00011812,2]
[404263610,1770014402055,1780.28254766,0.00011812,2]
[404263611,1770014403565,248.0,0.00011912,2]
[404263612,1770014406844,-6200.0,0.00011912,2]
[404263613,1770014409185,200.0,0.00011912,2]
[404263614,1770014409873,217.08812203,0.00011902,2]
[404263615,1770014562451,-1442.29277205,0.00011451,2]
[404263616,1770014564501,-339.38924425,0.00011451,2]
[404263617,1770014566624,-504.29197886,0.00011451,2]
[404263618,1770014569299,-280.77359984,0.00011451,2]
[404263619,1770014570762,-241.10012185,0.00011451,2]
[404263620,1770014573445,-1601.98415386,0.00011451,2]
[404263621,1770014576160,-1854.27946016,0.00011451,2]
[404263622,1770014580068,-1376.4768139,0.00011451,2]
[404263623,1770014582962,-1039.77,0.00011401,2]
[404263624,1770014582992,-29.33399443,0.00011451,2]
[404263625,1770014585082,-550.0,0.00011451,2]
[404263626,1770014587765,-313.35017007,0.00011451,2]
[404263627,1770014591103,-500.0,0.00011451,2]
[404263628,1770014592856,-4322.90986851,0.00011451,2]
[404263629,1770014595552,-500.0,0.00011451,2]
[404263630,1770014598756,-220.08765661,0.00011451,2]
[404263631,1770014600262,-1492.90782458,0.00011451,2]
[404263632,1770014601717,-852.41999983,0.00011451,2]
[404263633,1770014606214,-190.48782475,0.00011451,2]
[404263634,1770014608809,-362.88705281,0.00011451,2]
[404263635,1770014610756,-300.0,0.00011451,2]
[404263636,1770014612935,-203.46109691,0.00011451,2]
[404263637,1770014615077,-385.61538346,0.00011451,2]
[404263638,1770014620014,-195.17,0.00011451,2]
[404263639,1770014676018,164.0,0.000155,3]
[404263640,1770014696767,-216.67,0.00011246,2]
[404263641,1770014696791,-207.13383015,0.00011451,2]
[404263642,1770014741230,-901.79715312,0.00011451,2]
[404263643,1770014741254,-901.423,0.00011674,2]
[404263644,1770014741278,-5.8030868,0.00011712,2]
[404263645,1770014742732,-144.19713831,0.00011712,2]
[404263646,1770014742770,-80.0404926,0.00011743,2]
[404263647,1770014745027,-169.9595074,0.00011743,2]
[404263648,1770014745052,-1200.0,0.00011784,2]
[404263649,1770014745074,-122.94831718,0.00011785,2]
[404263650,1770014747800,-99.8374505,0.00011785,2]
[404263651,1770014747823,-1042.81560093,0.00011785,2]
[404263653,1770014764942,190.6,0.00021,30]
[404263656,1770014838523,163.0,0.00021,30]
[404263657,1770014846372,-250.0,0.00011712,2]
[404263658,1770014877369,-300.0,0.00011712,2]
[404263659,1770014879644,-500.0,0.00011712,2]
[404263660,1770014881810,-500.0,0.00011712,2]
[404263661,1770014883512,-650.0,0.00011712,2]
[404263662,1770014885686,-500.0,0.00011712,2]
[404263663,1770014907179,-230.54652626,0.00011712,2]
[404263667,1770014951876,-769.45347374,0.00011712,2]
[404263894,1770015026765,-191.87,0.00011622,2]
[404263895,1770015030109,-458.13,0.00011622,2]
[404263896,1770015030136,-213.73649392,0.00011681,2]
[404263900,1770015031623,-246.0,0.00011681,2]
[404263901,1770015031634,-49.8015,0.00011711,2]
[404263902,1770015031646,-250.1985,0.00011711,2]
[404263903,1770015031656,-1200.0,0.00011711,2]
[404263904,1770015031666,-37.1195097,0.00011712,2]
[404263905,1770015031676,-228.92457339,0.00011712,2]
[404263906,1770015031692,-21.07542661,0.00011712,2]
[404263907,1770015031701,-977.92457339,0.00011712,2]
[404263908,1770015031713,-1351.70377333,0.00011712,2]
[404263909,1770015031800,-170.37165328,0.00011712,2]
[404263910,1770015031809,-337.62834672,0.00011712,2]
[404263911,1770015031821,-400.25616584,0.00011712,2]
[404263925,1770015032261,-256.0,0.00011712,2]
[404263926,1770015034362,-381.1383975,0.00011711,2]
[404263927,1770015034393,-32.90640477,0.00011711,2]
[404263928,1770015036508,-154.050855,0.00011711,2]
[404263929,1770015036538,-481.07873741,0.00011711,2]
[404263933,1770015037609,-18.92126259,0.00011711,2]
[404263934,1770015037620,-500.0,0.00011711,2]
[404263935,1770015037630,-500.0,0.00011711,2]
[404263936,1770015037639,-500.0,0.00011711,2]
[404263937,1770015037649,-500.0,0.00011711,2]
[404263938,1770015037659,-500.0,0.00011711,2]
[404263939,1770015037669,-600.0,0.00011711,2]
[404263940,1770015037678,-4124.7584104,0.00011712,2]
[404263941,1770015037690,-671.07308538,0.00011712,2]
[404263942,1770015037724,-21055.80173218,0.00011712,2]
[404263945,1770015039571,-1316.44,0.00011712,2]
[404263946,1770015039646,-745.34408439,0.00011712,2]
[404263951,1770015039709,-8880.40000007,0.00011712,2]
[404263952,1770015039720,-6542.20000001,0.00011712,2]
[404263953,1770015040308,-1428.19270577,0.00011712,2]
[404263955,1770015040320,-954241.90546924,0.00011712,2]
[404263957,1770015040330,-14767.83056322,0.00011782,2]
[404263958,1770015040340,-275.69692337,0.00011782,2]
[404263959,1770015040350,-17290.63888578,0.00011782,2]
[404263960,1770015040360,-150.0,0.00011784,2]
[404263961,1770015040370,-250.0,0.00011785,2]
[404263962,1770015040380,-151.0,0.00011805,2]
[404263963,1770015040390,-151.0,0.00011805,2]
[404263964,1770015040400,-151.0,0.00011805,2]
[404263965,1770015040409,-151.0,0.00011805,2]
[404263966,1770015040419,-151.0,0.00011805,2]
[404263967,1770015040429,-151.0,0.00011805,2]
[404263968,1770015040439,-151.0,0.00011805,2]
[404263969,1770015040449,-151.0,0.00011805,2]
[404263970,1770015040459,-200.0,0.00011805,2]
[404263971,1770015040469,-151.0,0.00011805,2]
[404263972,1770015040479,-151.0,0.00011805,2]
[404263973,1770015040489,-151.0,0.00011805,2]
[404263974,1770015040499,-151.0,0.00011809,2]
[404263975,1770015040509,-151.0,0.00011809,2]
[404263976,1770015040519,-500.0,0.00011811,2]
[404263977,1770015040529,-209.21983669,0.00011812,2]
[404263978,1770015040539,-2900000.0,0.00011812,2]
[404263979,1770015040549,-9999.99,0.00011885,2]
[404263980,1770015040559,-1229.84,0.00011885,2]
[404263981,1770015040570,-464.87,0.00011885,2]
[404263982,1770015040580,-9999.99,0.00011885,2]
[404263983,1770015040590,-13849.27,0.00011885,2]
[404263984,1770015040599,-1182.49,0.00011885,2]
[404263985,1770015040609,-299.99,0.00011885,2]
[404263986,1770015040619,-150.99,0.00011885,2]
[404263987,1770015040631,-188772.95,0.00011885,2]
[404263988,1770015040640,-4999.99,0.00011885,2]
[404263989,1770015040650,-499.99,0.00011885,2]
[404263990,1770015040660,-9999.99,0.00011885,2]
[404263991,1770015040669,-999.99,0.00011885,2]
[404263992,1770015040679,-9999.99,0.00011885,2]
[404263993,1770015040688,-9999.99,0.00011885,2]
[404263994,1770015040698,-150.99,0.00011885,2]
[404263995,1770015040708,-9156.55,0.00011885,2]
[404263996,1770015040718,-500.0,0.00011905,2]
[404263997,1770015040728,-200.0,0.00011905,2]
[404263998,1770015040738,-14009.2,0.00011909,2]
[404263999,1770015040748,-9999.99,0.00011909,2]
[404264000,1770015040758,-23633.88,0.00011909,2]
[404264001,1770015040767,-6799.4482,0.00011912,2]
[404264002,1770015040777,-1000.0,0.00011912,2]
[404264003,1770015040787,-150.0006068,0.00011968,2]
[404264004,1770015040797,-1710.23,0.00012005,2]
[404264005,1770015040806,-200.0,0.00012031,2]
[404264006,1770015040816,-500.0,0.00012085,2]
[404264007,1770015040825,-200.0,0.00012151,2]
[404264008,1770015040835,-415.0,0.0001218,2]
[404264009,1770015040844,-233.0,0.00012205,2]
[404264010,1770015040855,-500.0,0.00012223,2]
[404264011,1770015040864,-150.0,0.00012223,2]
[404264012,1770015040874,-150.0,0.00012223,2]
[404264013,1770015040884,-500.0,0.00012223,2]
[404264014,1770015040893,-500.0,0.00012223,2]
[404264015,1770015040903,-500.0,0.00012223,2]
[404264016,1770015040912,-150.0,0.00012223,2]
[404264017,1770015040922,-150.0,0.00012223,2]
[404264018,1770015040931,-150.0,0.00012223,2]
[404264019,1770015040941,-150.10178686,0.00012223,2]
[404264020,1770015040950,-150.8823375,0.00012223,2]
[404264021,1770015040960,-150.0,0.00012223,2]
[404264022,1770015040969,-150.86853195,0.00012223,2]
[404264023,1770015040979,-150.28399281,0.00012223,2]
[404264024,1770015040988,-150.0,0.00012223,2]
[404264025,1770015040998,-150.0,0.00012223,2]
[404264026,1770015041007,-150.0,0.00012223,2]
[404264027,1770015041017,-659.0,0.00012232,2]
[404264028,1770015041026,-1552.0,0.00012257,2]
[404264029,1770015041036,-200.0,0.00012273,2]
[404264030,1770015041045,-500.0,0.00012278,2]
[404264031,1770015041055,-150.0,0.00012278,2]
[404264032,1770015041068,-150.0,0.00012278,2]
[404264033,1770015041077,-500.0,0.00012278,2]
[404264034,1770015041086,-500.0,0.00012278,2]
[404264035,1770015041096,-500.0,0.00012278,2]
[404264036,1770015041106,-150.0,0.00012278,2]
[404264037,1770015041116,-150.0,0.00012278,2]
[404264038,1770015041129,-150.0,0.00012278,2]
[404264039,1770015041139,-155.94467862,0.00012278,2]
[404264040,1770015041149,-150.0,0.00012278,2]
[404264041,1770015041159,-934.0,0.00012281,2]
[404264042,1770015041168,-500.0,0.00012333,2]
[404264043,1770015041178,-200.0,0.00012333,2]
[404264044,1770015041187,-500.0,0.00012333,2]
[404264045,1770015041197,-500.0,0.00012333,2]
[404264046,1770015041207,-500.0,0.00012333,2]
[404264047,1770015041217,-200.0,0.00012333,2]
[404264048,1770015041226,-289.36328116,0.00012333,2]
[404264049,1770015041236,-150.0,0.00012333,2]
[404264050,1770015041246,-150.0,0.00012333,2]
[404264051,1770015041255,-150.0,0.00012333,2]
[404264052,1770015041265,-500.0,0.00012359,2]
[404264053,1770015041274,-500.0,0.00012387,2]